bitfinex/quotes_ETHUSD_20250626
["timestamp","ask_amount","ask_price","bid_price","bid_amount"]
[1750945413700,0.2048,2438.1,2437.9,4.10178985]
[1750945413999,0.2048,2438.1,2438.0,4.10172272]
[1750945414593,0.2048,2438.3,2437.9,4.10189097]
[1750945414929,0.2048,2438.3,2438.0,4.10156401]
[1750945415092,0.2048,2438.3,2438.0,4.10166611]
[1750945415294,0.8208,2438.5,2437.9,0.2048]
[1750945415600,0.2048,2438.4,2438.3,4.10110668]
[1750945415923,0.8113,2438.8,2438.2,10.0]
[1750945416111,1.943,2439.3,2438.7,4.10054537]
[1750945416313,0.2048,2439.0,2438.6,4.10066655]
[1750945416491,0.2048,2439.0,2438.5,0.2048]
[1750945416492,0.2048,2439.0,2438.9,4.10020911]
[1750945416692,0.2048,2439.2,2439.1,4.0998729]
[1750945416895,0.2048,2439.5,2439.2,4.09957193]
[1750945417118,0.49727,2439.5,2439.2,4.09970482]
[1750945417318,0.2048,2439.5,2439.1,0.2048]
[1750945417506,0.2048,2439.5,2439.1,4.30464593]
[1750945418032,0.2048,2439.5,2439.2,4.09953956]
[1750945418252,0.2048,2439.5,2439.1,4.30459116]
[1750945418430,0.2048,2439.5,2439.1,0.2048]
[1750945418599,0.7769,2439.6,2438.9,4.10018486]
[1750945418794,0.55,2439.5,2438.5,0.7893]
[1750945419097,0.2048,2439.1,2438.7,10.0]
[1750945419494,0.7929,2439.0,2438.2,20.6781146]
[1750945419714,0.2048,2438.9,2438.6,10.0]
[1750945419897,0.2048,2438.9,2438.5,0.2048]
[1750945420104,0.2048,2438.7,2438.2,4.30610491]
[1750945420395,0.55,2438.6,2438.2,0.2048]
[1750945420612,0.2048,2438.4,2438.2,4.1013018]
[1750945420814,0.7606,2438.8,2438.2,4.1013018]
[1750945420815,0.2048,2438.6,2438.2,4.1013018]
[1750945421009,0.2048,2438.6,2438.1,0.2048]
[1750945421209,0.55,2438.7,2437.8,10.657]
[1750945421434,0.2048,2438.4,2438.1,4.10142927]
[1750945421739,0.55,2438.7,2437.9,11.9642]
[1750945421933,0.2048,2438.5,2438.2,4.10130177]
[1750945422122,0.7606,2438.8,2438.2,10.0]
[1750945422302,0.9654,2438.8,2438.4,4.10093503]
[1750945422504,0.9654,2438.8,2438.5,4.10088168]
[1750945422505,0.7606,2438.8,2438.5,4.10088168]
[1750945422698,0.7606,2438.8,2438.5,4.30568168]
[1750945422916,0.7606,2438.8,2438.5,0.2048]
[1750945423742,0.7606,2438.8,2438.5,4.30562422]
[1750945424641,0.7606,2438.8,2438.6,4.100697]
[1750945425210,0.2048,2438.9,2438.6,4.10067986]
[1750945425412,0.795,2439.1,2438.8,4.10022936]
[1750945425607,1.943,2439.7,2439.0,4.10001411]
[1750945425821,0.2048,2439.3,2439.1,4.09984134]
[1750945426148,1.943,2439.7,2438.8,0.83]
[1750945426317,0.2048,2439.4,2439.2,4.0995666]
[1750945426721,0.2048,2439.4,2439.2,4.09961284]
[1750945427230,0.2048,2439.4,2439.0,0.2048]
[1750945427742,0.2048,2439.4,2439.1,4.09985085]
[1750945427948,0.2048,2439.4,2439.2,4.09969699]
[1750945428532,0.8087,2439.8,2439.4,4.09924496]
[1750945428839,1.0135,2439.8,2439.5,4.09912394]
[1750945429011,1.0135,2439.8,2439.3,0.2048]
[1750945429218,0.2048,2439.7,2439.3,4.0993953]
[1750945429735,0.2048,2439.7,2439.4,4.09936869]
[1750945430746,0.2048,2439.7,2439.5,4.09918879]
[1750945430949,0.8193,2440.4,2439.8,4.09856444]
[1750945431153,0.2048,2440.0,2439.7,4.0988076]
[1750945431360,0.2048,2440.0,2439.5,0.2048]
[1750945431361,0.8193,2440.4,2439.9,4.09852862]
[1750945431657,0.2048,2440.1,2439.7,0.2048]
[1750945431814,0.2048,2440.1,2439.7,4.30359859]
[1750945432133,0.2048,2440.1,2439.7,4.30357497]
[1750945432647,0.8193,2440.4,2439.6,4.09901789]
[1750945432869,0.2048,2440.0,2439.6,0.2048]
[1750945433084,0.7526,2439.9,2439.6,0.2048]
[1750945433531,0.7526,2440.2,2440.0,4.09827613]
[1750945433856,0.7526,2440.2,2439.3,4.09953675]
[1750945433857,0.7526,2440.2,2439.9,4.09838136]
[1750945434023,0.7526,2440.2,2440.0,4.09834418]
[1750945434224,0.7526,2440.2,2439.8,4.30349661]
[1750945434225,0.7526,2440.2,2439.8,0.2048]
[1750945434751,0.2048,2439.9,2439.5,4.30398248]
[1750945435061,0.7526,2440.2,2439.6,4.09901971]
[1750945435276,0.2048,2440.1,2439.7,4.09876849]
[1750945435616,0.2048,2440.1,2439.8,4.09868988]
[1750945435849,1.942,2440.7,2440.0,4.09820102]
[1750945436023,0.2048,2440.4,2440.0,4.09820102]
[1750945436346,1.942,2440.7,2440.0,4.09836065]
[1750945436533,0.2048,2440.5,2440.1,4.09818622]
[1750945436730,0.2048,2440.5,2440.2,4.09790612]
[1750945437266,0.8285,2440.9,2440.3,4.09774568]
[1750945437564,0.2048,2440.7,2440.3,4.30254568]
[1750945437860,0.2048,2440.7,2440.3,4.30258131]
[1750945438161,0.2048,2440.7,2440.3,0.2048]
[1750945438334,0.2048,2440.7,2440.4,4.09758171]
[1750945438847,0.2048,2441.1,2440.6,0.2048]
[1750945439231,0.8261,2441.6,2440.9,0.2048]
[1750945439442,0.2048,2441.4,2440.9,0.2048]
[1750945439833,0.2048,2441.4,2440.5,10.0]
[1750945439834,0.2048,2441.1,2440.6,0.2048]
[1750945440320,0.8001,2441.0,2440.4,1.942]
[1750945440550,0.2048,2440.9,2440.4,2.1468]
[1750945440870,0.2048,2440.9,2440.4,6.2444597]
[1750945441163,0.2048,2440.9,2440.4,2.1468]
[1750945441365,0.55,2440.9,2440.4,1.942]
[1750945441532,0.2048,2440.9,2440.5,0.2048]
[1750945441921,0.7549,2441.3,2440.9,4.09676814]
[1750945442121,0.7549,2441.7,2440.9,4.09684952]
[1750945442353,0.55,2441.5,2440.7,7.0]
[1750945442527,0.2048,2441.3,2440.8,0.2048]
[1750945442735,0.2048,2441.1,2440.9,4.09679827]
[1750945442932,0.9597,2441.4,2441.0,0.2048]
[1750945443974,0.2048,2441.4,2441.0,4.30146593]
[1750945444136,0.2048,2441.4,2441.0,0.2048]
[1750945444340,0.55,2441.6,2440.8,1.918]
[1750945444557,0.2048,2441.3,2440.8,0.2048]
[1750945444740,1.3491,2441.2,2440.5,0.8279]
[1750945445057,0.2048,2440.9,2440.5,0.2048]
[1750945445264,1.3491,2441.2,2440.4,1.918]
[1750945445576,0.2048,2440.8,2440.4,0.2048]
[1750945445772,0.9558,2440.7,2440.2,0.2048]
[1750945447382,0.9558,2440.7,2439.8,4.09863455]
[1750945447383,0.55,2440.6,2439.7,0.84025926]
[1750945447579,0.751,2440.7,2439.6,1.11918576]
[1750945447580,1.3387,2440.4,2439.6,0.8083]
[1750945447746,1.3387,2440.4,2439.7,0.2048]
[1750945447747,0.2048,2440.1,2439.7,0.2048]
[1750945448647,0.2048,2440.1,2439.7,10.2048]
[1750945448854,0.2048,2440.1,2439.7,0.2048]
[1750945449256,0.2048,2440.1,2439.7,10.2048]
[1750945449461,0.2048,2440.1,2439.7,4.30365609]
[1750945449997,0.2048,2440.1,2439.7,0.2048]
[1750945450496,0.2048,2440.1,2439.7,4.30363951]
[1750945450641,0.2048,2440.1,2439.7,2.04508366]
[1750945450844,0.2048,2440.1,2439.7,0.2048]
[1750945451192,1.3387,2440.4,2439.3,13.03280492]
[1750945451397,0.2048,2440.0,2439.5,10.2048]
[1750945451968,0.2048,2440.0,2439.5,0.2048]
[1750945452170,0.2048,2440.0,2439.5,10.2048]
[1750945452376,0.2048,2440.0,2439.5,0.2048]
[1750945452580,0.2048,2440.0,2439.5,16.00695667]
[1750945452881,0.2048,2440.0,2439.5,11.90783872]
[1750945453365,0.2048,2440.0,2439.5,10.2048]
[1750945454084,0.2048,2440.0,2439.5,14.3039658]
[1750945454381,0.2048,2440.0,2439.5,10.2048]
[1750945455083,0.2048,2440.0,2439.5,0.2048]
[1750945455254,0.2048,2440.3,2439.8,4.30337728]
[1750945455448,0.2048,2440.3,2439.9,4.09847826]
[1750945455666,0.7887,2440.4,2439.9,4.09847826]
[1750945455862,0.9935,2440.4,2440.0,0.2048]
[1750945456442,0.9935,2440.4,2440.0,4.303068]
[1750945456636,0.9935,2440.4,2440.0,0.2048]
[1750945456870,0.55,2440.3,2439.6,11.08399564]
[1750945457072,0.2048,2440.1,2439.7,0.2048]
[1750945457767,0.2048,2440.1,2439.9,1.1]
[1750945458389,0.55,2440.1,2439.9,1.1]
[1750945460344,0.55,2440.1,2439.4,14.30407163]
[1750945460345,0.2048,2439.9,2439.4,14.30407163]
[1750945460584,0.2048,2439.9,2439.5,4.09908649]
[1750945460884,0.2048,2439.9,2439.6,5.93926965]
[1750945461091,0.2048,2439.9,2439.6,6.14406965]
[1750945461263,0.2048,2439.9,2439.7,4.09883792]
[1750945461881,0.2048,2439.9,2439.6,6.14410559]
[1750945462267,0.2048,2439.9,2439.7,4.09885491]
[1750945462590,0.2048,2439.9,2439.8,1.1]
[1750945462946,0.8203,2440.2,2439.8,5.92308749]
[1750945463254,0.55,2440.5,2440.0,4.09824232]
[1750945463255,0.8203,2440.5,2440.0,4.09824232]
[1750945463453,0.2048,2440.4,2440.0,4.09824232]
[1750945463756,0.8203,2440.5,2440.2,0.2048]
[1750945464075,0.8203,2440.5,2439.8,11.53531377]
[1750945464076,0.8203,2440.5,2439.9,4.30324985]
[1750945464278,0.2048,2440.4,2439.9,0.2048]
[1750945464711,0.55,2440.4,2439.8,1.1]
[1750945464852,0.2048,2440.2,2439.8,1.1]
[1750945465178,0.7608,2440.1,2439.8,1.1]
[1750945465661,0.2048,2439.9,2439.8,1.1]
[1750945468184,0.2048,2439.9,2439.4,12.1228]
[1750945468382,0.2048,2439.9,2439.4,14.5527519]
[1750945469544,0.2048,2439.9,2439.4,0.2048]
[1750945469750,0.8313,2439.8,2439.0,9.829]
[1750945469983,0.2048,2439.7,2439.2,0.2048]
[1750945470185,0.55,2439.6,2439.0,4.09988393]
[1750945470391,0.2048,2439.4,2439.1,4.09979686]
[1750945470568,0.8313,2439.8,2439.2,0.43045969]
[1750945470766,0.8313,2439.8,2439.1,0.2048]
[1750945470767,0.2048,2439.6,2439.1,0.2048]
[1750945470969,0.55,2439.7,2438.9,1.918]
[1750945470970,0.2048,2439.4,2439.0,0.2048]
[1750945473171,0.2048,2439.4,2439.2,1.1]
[1750945474601,0.8313,2439.8,2439.3,4.09953391]
[1750945474912,0.8313,2440.4,2439.3,0.7743]
[1750945475204,0.2048,2440.0,2439.7,4.09884403]
[1750945475507,1.899,2440.3,2439.9,4.0984457]
[1750945475508,0.2048,2440.3,2439.9,4.0984457]
[1750945475806,0.2048,2440.3,2439.8,0.2048]
[1750945476177,0.2048,2440.3,2439.8,4.30341433]
[1750945476369,0.2048,2440.3,2439.8,0.2048]
[1750945476776,1.10361,2440.3,2439.6,4.09899049]
[1750945476975,0.2048,2440.2,2439.7,0.2048]
[1750945478094,0.8313,2440.4,2440.0,4.09827753]
[1750945478271,0.2048,2440.4,2439.9,0.2048]
[1750945478591,0.2048,2440.4,2440.1,4.0980485]
[1750945478894,0.2048,2440.4,2440.0,4.09829493]
[1750945479074,0.2048,2440.4,2440.0,5.02162944]
[1750945479269,0.2048,2440.4,2440.1,4.09815651]
[1750945479480,0.7955,2440.6,2440.0,0.92333451]
[1750945479664,0.7955,2440.6,2440.1,0.2048]
[1750945479665,1.0003,2440.6,2440.1,0.2048]
[1750945480580,1.0003,2440.6,2440.1,4.30298665]
[1750945480875,1.0003,2440.6,2440.2,0.52263212]
[1750945481409,0.2048,2440.4,2440.0,0.2048]
[1750945482061,0.2048,2440.4,2440.1,4.09817477]
[1750945482260,0.7955,2440.6,2440.1,4.09808575]
[1750945482566,1.0003,2440.6,2440.1,4.30288575]
[1750945482962,0.7746,2440.9,2440.1,1.03003628]
[1750945483294,0.2048,2440.8,2440.4,4.09763878]
[1750945483699,0.7746,2440.9,2440.3,1.1]
[1750945483867,0.9794,2440.9,2440.6,4.09733347]
[1750945484202,0.8327,2441.4,2440.8,4.30165257]
[1750945484423,0.2048,2441.3,2440.9,4.09679296]
[1750945484697,0.8327,2441.4,2440.9,0.7857]
[1750945484901,0.204,2441.6,2440.9,10.7857]
[1750945485084,0.204,2441.6,2441.3,4.09606399]
[1750945485287,0.7769,2441.7,2441.3,4.09606399]
[1750945485487,0.9809,2441.7,2441.3,4.09606399]
[1750945485867,0.9809,2441.7,2441.2,0.2048]
[1750945488481,0.7769,2441.7,2440.9,2.6847]
[1750945488685,0.204,2441.5,2441.0,0.2048]
[1750945491410,0.7769,2441.7,2441.1,4.09636328]
[1750945491705,0.9809,2441.7,2441.3,0.2048]
[1750945493313,0.2048,2441.4,2441.0,0.2048]
[1750945494610,0.9809,2441.7,2441.2,0.2048]
[1750945495279,0.9809,2441.7,2441.2,4.30112801]
[1750945495610,0.204,2441.7,2441.4,4.09591202]
[1750945495910,0.204,2441.9,2441.5,0.204]
[1750945496110,0.204,2441.9,2441.6,4.095672]
[1750945496613,0.204,2441.9,2441.5,0.204]
[1750945498714,0.204,2441.9,2441.5,4.29982314]
[1750945498911,0.204,2441.9,2441.5,0.204]
[1750945499113,1.0145,2441.9,2441.5,4.29981691]
[1750945499417,1.0145,2441.9,2441.6,4.09565016]
[1750945499613,0.7581,2442.2,2441.8,4.09524011]
[1750945499814,0.204,2442.4,2442.0,4.09489287]
[1750945500112,0.204,2442.4,2442.0,4.09500409]
[1750945500422,0.204,2442.9,2442.3,0.204]
[1750945500626,0.8279,2443.0,2442.5,4.09407562]
[1750945500831,0.8279,2443.0,2442.3,13.19346067]
[1750945501131,0.8279,2443.0,2442.5,4.09414966]
[1750945501132,0.204,2442.9,2442.5,4.09414966]
[1750945501334,0.204,2442.9,2442.4,0.204]
[1750945501512,0.7795,2442.4,2441.8,10.7981]
[1750945501831,0.9835,2442.4,2441.9,0.204]
[1750945502189,0.7795,2442.4,2441.8,10.0]
[1750945502428,0.204,2442.2,2441.8,10.0]
[1750945502931,0.7795,2442.4,2441.8,10.0]
[1750945503114,0.9835,2442.4,2442.1,4.09483605]
[1750945503436,0.7795,2442.4,2442.1,0.204]
[1750945503620,0.7795,2442.4,2442.1,4.29875452]
[1750945503922,0.7795,2442.4,2442.2,4.0946389]
[1750945504231,0.204,2442.6,2442.3,4.09443463]
[1750945504232,0.8143,2442.6,2442.3,4.09443463]
[1750945504390,1.0183,2442.9,2442.5,4.09400995]
[1750945504713,1.0183,2442.9,2442.5,0.204]
[1750945505313,1.0183,2442.9,2442.1,3.14825139]
[1750945505314,0.55,2442.8,2442.1,5.04414946]
[1750945505630,0.204,2442.6,2442.2,0.204]
[1750945506143,0.204,2442.6,2442.2,4.29855905]
[1750945506309,0.7937,2442.7,2442.2,4.09460274]
[1750945506505,0.7937,2442.7,2442.3,0.204]
[1750945507209,0.7937,2442.7,2442.3,4.29840503]
[1750945507522,0.7937,2442.7,2442.3,0.204]
[1750945507721,0.7937,2442.7,2442.3,4.2984933]
[1750945507928,0.7937,2442.7,2442.3,0.204]
[1750945508328,0.204,2442.6,2442.1,0.204]
[1750945508631,0.204,2442.6,2442.2,4.09461002]
[1750945508794,0.204,2442.6,2442.2,4.93394215]
[1750945509000,0.204,2442.6,2442.3,4.09450108]
[1750945509230,0.7937,2442.7,2442.5,4.09408675]
[1750945509401,0.7937,2442.7,2442.3,0.204]
[1750945510028,0.7937,2442.7,2442.4,4.0943035]
[1750945510443,0.7937,2442.7,2442.3,4.29834207]
[1750945510814,0.7937,2442.7,2442.4,4.09433037]
[1750945511214,0.7937,2442.7,2442.3,5.21932173]
[1750945511437,0.7937,2442.7,2442.3,1.12485974]
[1750945511749,0.7937,2442.7,2442.4,4.09433085]
[1750945512206,0.204,2442.8,2442.6,4.09399819]
[1750945512401,0.8088,2442.9,2442.5,4.09416481]
[1750945512614,10.0,2443.4,2442.5,1.50150246]
[1750945512921,0.204,2443.1,2442.7,4.2977385]
[1750945513245,1.0128,2443.3,2442.9,4.29739068]
[1750945513536,1.0128,2443.3,2442.9,0.204]
[1750945513722,0.55,2443.2,2442.4,11.896]
[1750945513923,0.204,2443.1,2442.7,4.29782758]
[1750945514325,0.204,2443.1,2442.8,4.09351691]
[1750945514536,1.0128,2443.3,2442.9,4.09339655]
[1750945514715,1.0128,2443.3,2443.0,4.09330804]
[1750945515042,0.8088,2443.3,2443.0,0.204]
[1750945515740,0.204,2443.2,2442.7,0.204]
[1750945516045,0.204,2443.2,2442.9,4.09337861]
[1750945516208,0.204,2443.5,2443.1,0.204]
[1750945516710,0.204,2443.5,2443.1,4.29715218]
[1750945516930,0.204,2443.5,2443.1,0.204]
[1750945517455,0.55,2443.4,2443.1,0.204]
[1750945517607,0.204,2443.2,2442.8,0.204]
[1750945517802,0.204,2443.2,2442.8,4.29765686]
[1750945518007,0.204,2443.2,2442.9,4.09348845]
[1750945518238,0.204,2443.2,2442.8,2.23276507]
[1750945518537,0.204,2443.4,2443.2,4.09290051]
[1750945518925,0.204,2443.6,2443.1,0.204]
[1750945519128,0.758,2443.7,2443.4,4.09254984]
[1750945519333,0.758,2443.7,2443.3,0.204]
[1750945519734,0.758,2443.7,2443.4,4.09263509]
[1750945520047,0.758,2443.7,2443.3,0.204]
[1750945520537,0.758,2443.7,2443.3,4.29682346]
[1750945520739,0.758,2443.7,2443.3,0.204]
[1750945521126,0.758,2443.7,2443.6,4.0923228]
[1750945521326,0.204,2443.8,2443.4,4.0925462]
[1750945521516,1.0315,2443.9,2443.6,4.09222826]
[1750945522044,0.7744,2444.1,2443.5,0.42965462]
[1750945522252,0.9784,2444.1,2443.8,4.09188366]
[1750945522452,0.7744,2444.1,2443.8,0.204]
[1750945522617,0.7744,2444.1,2443.8,4.29597974]
[1750945523104,0.7744,2444.1,2443.8,4.29590071]
[1750945523309,0.7568,2444.4,2443.8,1.02829943]
[1750945523504,0.7568,2444.6,2443.8,5.91660781]
[1750945523727,0.9608,2444.6,2444.3,4.09112207]
[1750945523930,0.9608,2444.6,2444.2,0.204]
[1750945524520,0.7664,2444.9,2444.5,4.09081611]
[1750945524714,0.7664,2444.9,2444.5,10.204]
[1750945524915,0.7664,2444.9,2444.5,0.204]
[1750945525313,0.7664,2444.9,2444.3,4.09114374]
[1750945525546,0.7664,2444.9,2444.2,10.7895]
[1750945525547,0.204,2444.8,2444.4,0.204]
[1750945526043,0.7639,2444.4,2444.1,0.204]
[1750945526212,0.7639,2444.4,2443.8,10.0]
[1750945526575,0.204,2444.3,2443.8,4.2959778]
[1750945526909,0.204,2444.3,2443.8,0.204]
[1750945527246,0.204,2444.3,2443.8,4.29585224]
[1750945527714,0.204,2444.3,2443.8,0.204]
[1750945529008,0.754,2444.1,2443.6,0.204]
[1750945529207,0.204,2443.8,2443.4,0.204]
[1750945530361,0.8089,2443.7,2443.4,0.204]
[1750945531762,1.0129,2443.7,2443.2,10.204]
[1750945531922,0.8089,2443.7,2443.0,1.895]
[1750945532118,0.204,2443.5,2443.1,10.0]
[1750945532859,0.204,2443.5,2443.0,0.204]
[1750945533064,0.204,2443.3,2442.8,0.204]
[1750945533233,0.55,2443.0,2442.2,0.7572]
[1750945533433,0.204,2442.8,2442.3,4.29841445]
[1750945533662,0.204,2442.8,2442.3,1.33962164]
[1750945533861,0.204,2442.8,2442.3,5.43411067]
[1750945534074,0.204,2442.8,2442.4,10.0]
[1750945534263,0.204,2442.8,2442.3,11.33962164]
[1750945534463,0.204,2442.8,2442.4,1.1]
[1750945534667,1.3696,2442.7,2442.4,1.1]
[1750945534967,0.204,2442.5,2442.4,1.1]
[1750945535167,0.204,2442.5,2442.0,0.204]
[1750945535469,0.204,2442.5,2442.0,15.08407479]
[1750945535646,0.8196,2442.7,2442.0,4.88009875]
[1750945535846,0.204,2442.4,2442.0,0.9892041]
[1750945536053,0.55,2442.2,2441.9,1.66100203]
[1750945536241,0.204,2442.0,2441.9,1.66100203]
[1750945537338,0.204,2442.0,2441.5,6.19176282]
[1750945537567,0.204,2442.0,2441.5,6.19180466]
[1750945537773,0.7774,2442.3,2441.8,4.09524255]
[1750945537973,0.7774,2442.3,2441.9,4.0951661]
[1750945537974,0.9814,2442.3,2441.9,4.0951661]
[1750945538341,0.9814,2442.3,2441.9,4.09513689]
[1750945538539,0.9814,2442.3,2441.8,0.204]
[1750945538852,1.0316,2442.6,2442.2,4.09460345]
[1750945539051,0.55,2442.5,2442.0,1.1]
[1750945539250,0.204,2442.3,2442.0,1.1]
[1750945539450,0.204,2442.3,2442.0,5.1949954]
[1750945539775,0.8276,2442.6,2442.0,2.82912934]
[1750945539973,1.0316,2442.6,2442.2,4.29857621]
[1750945540143,1.0316,2442.6,2442.3,4.09449339]
[1750945540341,1.0316,2442.6,2442.2,4.29862412]
[1750945540541,0.204,2442.6,2442.3,4.60724732]
[1750945540748,0.204,2442.6,2442.3,0.51287241]
[1750945540946,0.204,2442.6,2442.3,4.60733764]
[1750945541378,0.204,2442.6,2442.3,4.6072735]
[1750945541750,0.204,2442.6,2442.5,4.09416581]
[1750945542074,0.9953,2442.8,2442.5,4.96431365]
[1750945542281,0.9953,2442.8,2442.5,0.87014784]
[1750945542475,0.9953,2442.8,2442.4,4.09422999]
[1750945542643,0.9953,2442.8,2442.3,0.71687241]
[1750945543284,0.9953,2442.8,2442.4,4.09431786]
[1750945544369,0.9953,2442.8,2442.3,4.29846428]
[1750945544694,0.204,2442.5,2442.1,10.204]
[1750945544851,0.204,2442.5,2442.1,14.29874311]
[1750945545188,0.8276,2442.4,2442.1,10.0]
[1750945545347,0.204,2442.3,2442.1,10.0]
[1750945546352,0.204,2442.3,2442.0,14.09497594]
[1750945546679,0.204,2442.3,2441.9,10.204]
[1750945546870,0.55,2442.3,2441.8,10.0]
[1750945547179,0.204,2442.1,2441.8,10.0]
[1750945547479,0.7992,2442.0,2441.7,10.0]
[1750945547881,0.7992,2442.0,2441.8,4.09524617]
[1750945548080,0.204,2442.1,2441.8,4.09524617]
[1750945548285,0.7851,2442.2,2441.7,2.31415845]
[1750945548474,0.7851,2442.2,2442.0,4.09500409]
[1750945549450,0.204,2442.3,2442.1,4.09483641]
[1750945549653,0.204,2442.3,2441.9,0.204]
[1750945549853,0.204,2442.3,2441.6,12.7057]
[1750945549854,0.7839,2442.2,2441.6,4.09558407]
[1750945550156,0.204,2442.0,2441.7,10.0]
[1750945550352,0.7839,2442.2,2441.8,4.0952783]
[1750945550658,0.9879,2442.2,2442.0,4.09494387]
[1750945550862,0.204,2442.2,2442.1,4.09483641]
[1750945551384,0.7947,2442.4,2442.2,4.09460832]
[1750945551600,7.81,2443.7,2442.4,4.09433344]
[1750945551601,0.204,2442.5,2442.4,4.09433344]
[1750945551759,1.0184,2442.7,2442.4,4.09433344]
[1750945552083,1.0184,2442.7,2442.6,4.09399819]
[1750945552281,1.0184,2442.7,2442.4,4.09425111]
[1750945552490,1.0184,2442.7,2442.3,4.09449605]
[1750945552786,0.8144,2442.7,2442.0,4.09488056]
[1750945552998,0.204,2442.5,2442.1,10.0]
[1750945553606,0.204,2442.5,2442.0,4.29899505]
[1750945554180,0.204,2442.5,2442.1,4.09483641]
[1750945554385,0.204,2442.5,2442.1,4.09469559]
[1750945554587,0.204,2442.5,2442.1,4.52456515]
[1750945554976,4.09466874,2442.2,2442.1,0.42986956]
[1750945555308,4.09466874,2442.2,2439.0,0.30485534]
[1750945555309,0.816,2440.5,2439.0,0.30485534]
[1750945555507,11.99931949,2439.3,2438.7,0.21371731]
[1750945555803,11.99931949,2439.2,2438.4,2.7144]
[1750945556007,0.55,2439.5,2438.5,12.11604]
[1750945556177,11.99931949,2439.4,2438.6,1.293744]
[1750945556376,0.7581,2438.9,2438.0,0.7619]
[1750945556812,0.7581,2438.9,2438.2,2.372091]
[1750945557111,12.75741949,2438.9,2438.0,10.0]
[1750945557298,12.75741949,2438.9,2437.7,11.87969859]
[1750945557299,12.75741949,2438.9,2437.7,0.8145]
[1750945557611,11.99931949,2438.5,2437.5,1.893]
[1750945557811,11.99931949,2438.5,2437.6,0.59956161]
[1750945558113,11.99931949,2438.5,2437.7,10.0]
[1750945558415,0.55,2438.8,2437.7,4.10218312]
[1750945558594,0.7581,2438.9,2437.8,30.0]
[1750945558791,0.8189,2439.6,2438.2,10.0]
[1750945558980,0.8189,2439.6,2438.6,27.753296]
[1750945559181,0.8189,2440.1,2439.0,4.09988452]
[1750945559413,10.8189,2440.1,2439.1,5.99272861]
[1750945559611,0.55,2440.0,2439.1,1.893]
[1750945559817,0.55,2440.0,2438.6,1.893]
[1750945559818,0.55,2439.7,2438.6,1.893]
[1750945560019,0.7518,2439.2,2438.1,11.718]
[1750945560405,0.55,2438.9,2438.1,1.893]
[1750945561007,0.55,2438.9,2437.8,6.01102758]
[1750945561211,0.55,2438.9,2437.8,1.909]
[1750945561532,0.55,2438.9,2437.9,10.0]
[1750945561689,2.1672518,2438.9,2437.9,12.60110097]
[1750945562318,0.55,2439.1,2438.0,14.10161002]
[1750945562519,0.55,2439.1,2438.0,10.0]
[1750945562720,10.16354249,2438.7,2437.8,1.909]
[1750945563129,10.16354249,2438.7,2437.6,7.59556161]
[1750945563130,9.61354249,2438.3,2437.6,0.59956161]
[1750945563351,9.61354249,2438.3,2437.3,6.01277228]
[1750945563352,0.55,2438.2,2437.3,6.01277228]
[1750945563499,0.55,2438.2,2437.4,1.01158384]
[1750945563839,0.8331,2437.8,2436.9,1.91]
[1750945564000,0.55,2437.7,2436.9,1.91]
[1750945564333,0.55,2437.7,2437.0,4.10340582]
[1750945564494,0.55,2437.7,2436.9,1.91]
[1750945564895,0.8331,2437.8,2436.9,11.91]
[1750945565127,0.2048,2437.9,2437.5,0.2048]
[1750945565307,0.2048,2437.9,2437.8,4.10205923]
[1750945565513,0.8064,2438.2,2437.6,4.10227011]
[1750945565711,0.2048,2438.1,2437.7,0.2048]
[1750945566198,0.2048,2438.1,2437.7,14.30702738]
[1750945566398,9.831,2439.3,2437.8,1.43070274]
[1750945566399,0.8219,2438.6,2437.8,1.43070274]
[1750945566717,0.2048,2438.3,2437.9,10.2048]
[1750945566920,0.2048,2438.1,2437.8,1.91]
[1750945567111,0.2048,2438.1,2437.7,2.1148]
[1750945567314,0.55,2438.5,2437.7,1.91]
[1750945567494,0.2048,2438.0,2437.7,1.91]
[1750945567695,0.2048,2438.0,2437.8,4.10205923]
[1750945568244,1.64854425,2438.5,2436.8,0.8319]
[1750945568433,0.2048,2437.9,2437.6,10.0]
[1750945568744,0.55,2438.2,2437.4,10.0]
[1750945568919,0.2048,2437.7,2437.4,10.0]
[1750945569242,0.2048,2437.7,2437.3,1.91]
[1750945569243,0.8186,2437.7,2437.3,1.91]
[1750945569443,0.2048,2437.5,2437.3,16.01286415]
[1750945569819,0.2048,2437.5,2437.4,4.10273241]
[1750945570060,0.2048,2437.5,2437.3,6.01283128]
[1750945570222,0.8186,2437.7,2437.5,4.10245946]
[1750945570414,0.2048,2437.8,2437.5,4.10245946]
[1750945570620,0.2048,2437.8,2437.6,4.1023788]
[1750945570815,0.7754,2438.1,2437.3,4.64288431]
[1750945571131,0.2048,2438.2,2438.1,4.10155448]
[1750945571334,0.2048,2438.2,2437.9,4.10187633]
[1750945571536,0.55,2438.4,2437.6,7.005]
[1750945571852,0.2048,2437.9,2437.5,2.1158]
[1750945572064,0.2048,2437.9,2437.5,4.30735864]
[1750945572218,0.2048,2437.9,2437.6,4.10235846]
[1750945572410,0.2048,2437.9,2437.6,4.10232915]
[1750945572628,0.2048,2437.9,2437.5,4.30728327]
[1750945572829,0.2048,2437.9,2437.5,0.2048]
[1750945573027,0.2048,2437.7,2437.4,11.911]
[1750945573510,0.2048,2437.7,2437.4,1.911]
[1750945573710,0.2048,2437.7,2437.4,6.01363499]
[1750945573949,0.2048,2437.7,2437.4,1.911]